fUST/lending_fUST_20240726
["ID","MTS","AMOUNT","RATE_DAILY","PERIOD"]
[333192935,1721932248074,-500.0,0.00014246,2]
[333192936,1721932248084,-500.0,0.00014246,2]
[333192937,1721932248094,-500.0,0.00014246,2]
[333192938,1721932248103,-500.0,0.00014246,2]
[333192939,1721932248113,-500.0,0.00014246,2]
[333192940,1721932248122,-500.0,0.00014246,2]
[333192941,1721932248132,-500.0,0.00014246,2]
[333192942,1721932248141,-500.0,0.00014246,2]
[333192943,1721932248151,-500.0,0.00014246,2]
[333192944,1721932248161,-1209.31,0.00014246,2]
[333192945,1721932248171,-778.69,0.00014246,2]
[333192946,1721932248182,-786.05,0.00014246,2]
[333192947,1721932248193,-871.4,0.00014246,2]
[333192948,1721932248207,-500.0,0.00014246,2]
[333192949,1721932248218,-500.0,0.00014246,2]
[333192950,1721932248228,-500.0,0.00014246,2]
[333192951,1721932248238,-436.61,0.00014246,2]
[333192952,1721932248248,-500.0,0.00014246,2]
[333192953,1721932248257,-500.0,0.00014246,2]
[333192954,1721932248267,-1184.69,0.00014246,2]
[333192955,1721932248278,-151.0,0.00014246,2]
[333192956,1721932248289,-500.0,0.00014246,2]
[333192957,1721932248300,-500.0,0.00014246,2]
[333192958,1721932248310,-500.0,0.00014246,2]
[333192959,1721932248321,-2092.76,0.00014246,2]
[333192960,1721932248330,-500.0,0.00014246,2]
[333192961,1721932248341,-500.0,0.00014246,2]
[333192962,1721932248351,-500.0,0.00014246,2]
[333192963,1721932248361,-500.0,0.00014246,2]
[333192964,1721932248371,-500.0,0.00014246,2]
[333192965,1721932248381,-500.0,0.00014246,2]
[333192966,1721932248391,-500.0,0.00014246,2]
[333192967,1721932248401,-1331.71,0.00014246,2]
[333192968,1721932248411,-500.0,0.00014246,2]
[333192969,1721932248421,-500.0,0.00014246,2]
[333192970,1721932248432,-570.44,0.00014246,2]
[333192971,1721932248442,-500.0,0.00014246,2]
[333192972,1721932248454,-715.998133,0.00014246,2]
[333192973,1721932248465,-841.82,0.00014246,2]
[333192974,1721932248474,-715.998133,0.00014246,2]
[333192975,1721932248484,-500.0,0.00014246,2]
[333192976,1721932248493,-646.51,0.00014246,2]
[333192977,1721932248502,-935.22,0.00014246,2]
[333192978,1721932248511,-610.0,0.00014246,2]
[333192979,1721932248522,-151.0,0.00014246,2]
[333192980,1721932248532,-1213.76,0.00014246,2]
[333192981,1721932248543,-609.42427956,0.00014246,2]
[333192982,1721932248554,-581.19,0.00014246,2]
[333192983,1721932248565,-1150.51,0.00014246,2]
[333192984,1721932248575,-500.0,0.00014246,2]
[333192985,1721932248585,-500.0,0.00014246,2]
[333192986,1721932248596,-500.0,0.00014246,2]
[333192987,1721932248605,-500.0,0.00014246,2]
[333192988,1721932248615,-500.0,0.00014246,2]
[333192989,1721932248624,-772.62,0.00014246,2]
[333192990,1721932248633,-500.0,0.00014246,2]
[333192991,1721932248643,-1147.1,0.00014246,2]
[333192992,1721932248652,-500.0,0.00014246,2]
[333192993,1721932248661,-1301.14,0.00014246,2]
[333192994,1721932248672,-500.0,0.00014246,2]
[333192995,1721932248681,-500.0,0.00014246,2]
[333192996,1721932248690,-500.0,0.00014246,2]
[333192997,1721932248700,-736.76,0.00014246,2]
[333192998,1721932248711,-500.0,0.00014246,2]
[333192999,1721932248722,-278.33967274,0.00014246,2]
[333193000,1721932248731,-660.58,0.00014246,2]
[333193001,1721932248741,-555.73,0.00014246,2]
[333193002,1721932248752,-500.0,0.00014246,2]
[333193003,1721932248764,-500.0,0.00014246,2]
[333193004,1721932248774,-500.0,0.00014246,2]
[333193005,1721932248785,-1061.04,0.00014246,2]
[333193006,1721932248795,-1089.93,0.00014246,2]
[333193007,1721932248806,-500.0,0.00014246,2]
[333193008,1721932248816,-725.61,0.00014246,2]
[333193009,1721932248825,-500.0,0.00014246,2]
[333193010,1721932248835,-1239.827232,0.00014246,2]
[333193011,1721932248845,-151.0,0.00014246,2]
[333193012,1721932248855,-1239.827232,0.00014246,2]
[333193013,1721932248866,-151.0,0.00014246,2]
[333193014,1721932248875,-500.0,0.00014246,2]
[333193015,1721932248884,-500.0,0.00014246,2]
[333193016,1721932248895,-500.0,0.00014246,2]
[333193017,1721932248904,-500.0,0.00014246,2]
[333193018,1721932248914,-984.29,0.00014246,2]
[333193019,1721932248923,-500.0,0.00014246,2]
[333193020,1721932248932,-500.0,0.00014246,2]
[333193021,1721932248941,-503.73812366,0.00014246,2]
[333193022,1721932248954,-810.81,0.00014246,2]
[333193023,1721932248964,-1061.88,0.00014246,2]
[333193024,1721932248974,-748.53,0.00014246,2]
[333193025,1721932248984,-500.0,0.00014246,2]
[333193026,1721932248995,-583.9,0.00014246,2]
[333193027,1721932249006,-500.0,0.00014246,2]
[333193028,1721932249017,-1025.05,0.00014246,2]
[333193029,1721932249027,-500.0,0.00014246,2]
[333193030,1721932249037,-600.87451103,0.00014246,2]
[333193031,1721932249047,-151.0,0.00014246,2]
[333193032,1721932249058,-509.18590537,0.00014246,2]
[333193033,1721932249069,-500.0,0.00014246,2]
[333193034,1721932249080,-500.0,0.00014246,2]
[333193035,1721932249091,-500.0,0.00014246,2]
[333193036,1721932249103,-500.0,0.00014246,2]
[333193037,1721932249113,-500.0,0.00014246,2]
[333193038,1721932249123,-873.61,0.00014246,2]
[333193039,1721932249132,-500.0,0.00014246,2]
[333193040,1721932249142,-500.0,0.00014246,2]
[333193041,1721932249153,-568.25,0.00014246,2]
[333193042,1721932249164,-500.0,0.00014246,2]
[333193043,1721932249176,-220.944959,0.00014246,2]
[333193044,1721932249185,-500.0,0.00014246,2]
[333193045,1721932249196,-577.62,0.00014246,2]
[333193046,1721932249209,-500.0,0.00014246,2]
[333193047,1721932249218,-1016.64,0.00014246,2]
[333193048,1721932249229,-762.91,0.00014246,2]
[333193049,1721932249239,-175.3812205,0.00014246,2]
[333193050,1721932249249,-500.0,0.00014246,2]
[333193051,1721932249259,-500.0,0.00014246,2]
[333193052,1721932249269,-500.0,0.00014246,2]
[333193053,1721932249280,-479.01163698,0.00014246,2]
[333193054,1721932249291,-583.71,0.00014246,2]
[333193055,1721932249302,-500.0,0.00014246,2]
[333193056,1721932249312,-943.23,0.00014246,2]
[333193057,1721932249323,-1189.41,0.00014246,2]
[333193058,1721932249332,-500.0,0.00014246,2]
[333193059,1721932249342,-500.0,0.00014246,2]
[333193060,1721932249351,-500.0,0.00014246,2]
[333193061,1721932249362,-2677.53,0.00014246,2]
[333193062,1721932249372,-500.0,0.00014246,2]
[333193063,1721932249383,-500.0,0.00014246,2]
[333193064,1721932249394,-500.0,0.00014246,2]
[333193065,1721932249404,-1535.05,0.00014246,2]
[333193066,1721932249414,-151.0,0.00014246,2]
[333193067,1721932249425,-558.01,0.00014246,2]
[333193068,1721932249435,-500.0,0.00014246,2]
[333193069,1721932249446,-500.0,0.00014246,2]
[333193070,1721932249457,-151.0,0.00014246,2]
[333193071,1721932249468,-500.0,0.00014246,2]
[333193072,1721932249479,-500.0,0.00014246,2]
[333193073,1721932249489,-803.44,0.00014246,2]
[333193074,1721932249500,-500.0,0.00014246,2]
[333193075,1721932249510,-763.15,0.00014246,2]
[333193076,1721932249521,-500.0,0.00014246,2]
[333193077,1721932249531,-2047.62,0.00014246,2]
[333193078,1721932249542,-500.0,0.00014246,2]
[333193079,1721932249552,-930.7,0.00014246,2]
[333193080,1721932249562,-500.0,0.00014246,2]
[333193081,1721932249572,-500.0,0.00014246,2]
[333193082,1721932249582,-500.0,0.00014246,2]
[333193083,1721932249593,-500.0,0.00014246,2]
[333193084,1721932249604,-151.0,0.00014246,2]
[333193085,1721932249614,-500.0,0.00014246,2]
[333193086,1721932249624,-1645.24,0.00014246,2]
[333193087,1721932249635,-1866.43,0.00014246,2]
[333193088,1721932249645,-1767.75,0.00014246,2]
[333193089,1721932249655,-500.0,0.00014246,2]
[333193090,1721932249665,-500.0,0.00014246,2]
[333193091,1721932249675,-1410.46,0.00014246,2]
[333193092,1721932249685,-927.64,0.00014246,2]
[333193093,1721932249695,-500.0,0.00014246,2]
[333193094,1721932249706,-500.0,0.00014246,2]
[333193095,1721932249717,-2490.27,0.00014246,2]
[333193096,1721932249729,-500.0,0.00014246,2]
[333193097,1721932249739,-2655.16,0.00014246,2]
[333193098,1721932249749,-500.0,0.00014246,2]
[333193099,1721932249759,-647.76,0.00014246,2]
[333193100,1721932249769,-151.0,0.00014246,2]
[333193101,1721932249780,-500.0,0.00014246,2]
[333193102,1721932249792,-500.0,0.00014246,2]
[333193103,1721932249804,-9389.14,0.00014246,2]
[333193104,1721932249814,-500.0,0.00014246,2]
[333193105,1721932249824,-500.0,0.00014246,2]
[333193106,1721932249837,-500.0,0.00014246,2]
[333193107,1721932249848,-922.75,0.00014246,2]
[333193108,1721932249860,-3968.3,0.00014246,2]
[333193109,1721932249870,-179.345121,0.00014246,2]
[333193110,1721932249879,-179.345121,0.00014246,2]
[333193111,1721932249889,-1516.91,0.00014246,2]
[333193112,1721932249901,-1773.9,0.00014246,2]
[333193113,1721932249911,-500.0,0.00014246,2]
[333193114,1721932249922,-500.0,0.00014246,2]
[333193115,1721932249933,-500.0,0.00014246,2]
[333193116,1721932249945,-500.0,0.00014246,2]
[333193117,1721932249956,-500.0,0.00014246,2]
[333193118,1721932249966,-1577.63,0.00014246,2]
[333193119,1721932249976,-542.46,0.00014246,2]
[333193120,1721932249987,-500.0,0.00014246,2]
[333193121,1721932249997,-730.35,0.00014246,2]
[333193122,1721932250009,-799.53,0.00014246,2]
[333193123,1721932250019,-500.0,0.00014246,2]
[333193124,1721932250030,-500.0,0.00014246,2]
[333193125,1721932250041,-1282.3,0.00014246,2]
[333193126,1721932250051,-6342.4,0.00014246,2]
[333193127,1721932250063,-500.0,0.00014246,2]
[333193128,1721932250073,-952.77,0.00014246,2]
[333193129,1721932250083,-500.0,0.00014246,2]
[333193130,1721932250094,-500.0,0.00014246,2]
[333193131,1721932250104,-500.0,0.00014246,2]
[333193132,1721932250114,-500.0,0.00014246,2]
[333193133,1721932250124,-500.0,0.00014246,2]
[333193134,1721932250134,-1021.45,0.00014246,2]
[333193135,1721932250145,-500.0,0.00014246,2]
[333193136,1721932250156,-500.0,0.00014246,2]
[333193137,1721932250165,-500.0,0.00014246,2]
[333193138,1721932250175,-615.14,0.00014246,2]
[333193139,1721932250183,-1550.44,0.00014246,2]
[333193140,1721932250193,-597.37,0.00014246,2]
[333193141,1721932250208,-500.0,0.00014246,2]
[333193142,1721932250218,-820.45,0.00014246,2]
[333193143,1721932250228,-500.0,0.00014246,2]
[333193144,1721932250239,-4616.0,0.00014246,2]
[333193145,1721932250250,-500.0,0.00014246,2]
[333193146,1721932250261,-7952.53,0.00014246,2]
[333193147,1721932250274,-841.85,0.00014246,2]
[333193148,1721932250285,-500.0,0.00014246,2]
[333193149,1721932250295,-500.0,0.00014246,2]
[333193150,1721932250306,-655.68,0.00014246,2]
[333193151,1721932250318,-500.0,0.00014246,2]
[333193152,1721932250330,-1449.04,0.00014246,2]
[333193153,1721932250341,-1233.01,0.00014246,2]
[333193154,1721932250351,-1303.4,0.00014246,2]
[333193155,1721932250363,-500.0,0.00014246,2]
[333193156,1721932250372,-500.0,0.00014246,2]
[333193157,1721932250381,-909.28,0.00014246,2]
[333193158,1721932250391,-558.36,0.00014246,2]
[333193159,1721932250402,-500.0,0.00014246,2]
[333193160,1721932250411,-745.63,0.00014246,2]
[333193161,1721932250420,-500.0,0.00014246,2]
[333193162,1721932250430,-1241.27,0.00014246,2]
[333193163,1721932250439,-2948.89,0.00014246,2]
[333193164,1721932250449,-1679.81,0.00014246,2]
[333193165,1721932250461,-500.0,0.00014246,2]
[333193166,1721932250471,-2457.08,0.00014246,2]
[333193167,1721932250480,-681.55,0.00014246,2]
[333193168,1721932250491,-151.0,0.00014246,2]
[333193169,1721932250501,-500.0,0.00014246,2]
[333193170,1721932250510,-988.48,0.00014246,2]
[333193171,1721932250519,-509.57344492,0.00014246,2]
[333193172,1721932250528,-500.0,0.00014246,2]
[333193173,1721932250538,-1356.76,0.00014246,2]
[333193174,1721932250546,-500.0,0.00014246,2]
[333193175,1721932250556,-947.61,0.00014246,2]
[333193176,1721932250565,-500.0,0.00014246,2]
[333193177,1721932250574,-1367.3,0.00014246,2]
[333193178,1721932250583,-151.0,0.00014246,2]
[333193179,1721932250592,-1527.38,0.00014246,2]
[333193180,1721932250601,-533.43,0.00014246,2]
[333193181,1721932250611,-500.0,0.00014246,2]
[333193182,1721932250621,-705.53,0.00014246,2]
[333193183,1721932250630,-151.0,0.00014246,2]
[333193184,1721932250763,-151.0,0.00014246,2]
[333193185,1721932250775,-1293.44,0.00014246,2]
[333193186,1721932250787,-500.0,0.00014246,2]
[333193187,1721932250797,-976.33,0.00014246,2]
[333193188,1721932250808,-500.0,0.00014246,2]
[333193189,1721932250819,-750.0,0.00014247,2]
[333193190,1721932250830,-3200.0,0.00014249,2]
[333193191,1721932250839,-432.116692,0.00014267,2]
[333193192,1721932250851,-455.854631,0.00014267,2]
[333193193,1721932250863,-715.998133,0.00014465,2]
[333193194,1721932250875,-715.998133,0.00014465,2]
[333193195,1721932250885,-1239.827232,0.00014465,2]
[333193196,1721932250895,-151.0,0.00014465,2]
[333193197,1721932250905,-1239.827232,0.00014465,2]
[333193198,1721932250916,-151.0,0.00014465,2]
[333193199,1721932250926,-600.0,0.00014465,2]
[333193200,1721932250937,-248.151094,0.0001451,2]
[333193201,1721932250947,-151.0,0.0001452,2]
[333193202,1721932250959,-151.0,0.0001452,2]
[333193203,1721932250968,-500.0,0.0001452,2]
[333193204,1721932250977,-500.0,0.0001452,2]
[333193205,1721932250987,-585.68,0.0001452,2]
[333193206,1721932250998,-500.0,0.0001452,2]
[333193207,1721932251008,-164.85744315,0.0001452,2]
[333193208,1721932251020,-565.93,0.0001452,2]
[333193209,1721932251030,-672.46,0.0001452,2]
[333193210,1721932251039,-730.6,0.0001452,2]
[333193211,1721932251048,-500.0,0.0001452,2]
[333193212,1721932251057,-500.0,0.0001452,2]
[333193213,1721932251067,-500.0,0.0001452,2]
[333193214,1721932251076,-551.33,0.0001452,2]
[333193215,1721932251086,-512.04771872,0.0001452,2]
[333193216,1721932251095,-508.84442964,0.0001452,2]
[333193217,1721932251105,-1095.31,0.0001452,2]
[333193218,1721932251115,-398.01668062,0.0001452,2]
[333193219,1721932251125,-500.0,0.0001452,2]
[333193220,1721932251135,-500.0,0.0001452,2]
[333193221,1721932251144,-500.0,0.0001452,2]
[333193222,1721932251153,-500.0,0.0001452,2]
[333193223,1721932251163,-500.0,0.0001452,2]
[333193224,1721932251172,-500.0,0.0001452,2]
[333193225,1721932251182,-500.0,0.0001452,2]
[333193226,1721932251191,-500.0,0.0001452,2]
[333193227,1721932251204,-500.0,0.0001452,2]
[333193228,1721932251213,-1209.31,0.0001452,2]
[333193229,1721932251222,-778.69,0.0001452,2]
[333193230,1721932251232,-786.05,0.0001452,2]
[333193231,1721932251242,-871.4,0.0001452,2]
[333193232,1721932251252,-402.36312419,0.0001452,2]
[333193233,1721932251261,-500.0,0.0001452,2]
[333193234,1721932251270,-500.0,0.0001452,2]
[333193235,1721932251281,-500.0,0.0001452,2]
[333193236,1721932251291,-500.0,0.0001452,2]
[333193237,1721932251301,-1184.69,0.0001452,2]
[333193238,1721932251310,-570.7599877,0.0001452,2]
[333193239,1721932251320,-500.0,0.0001452,2]
[333193240,1721932251330,-500.0,0.0001452,2]
[333193241,1721932251340,-2092.76,0.0001452,2]
[333193242,1721932251349,-500.0,0.0001452,2]
[333193243,1721932251359,-630.46579676,0.0001452,2]
[333193244,1721932251368,-500.0,0.0001452,2]
[333193245,1721932251378,-500.0,0.0001452,2]
[333193246,1721932251388,-500.0,0.0001452,2]
[333193247,1721932251398,-540.80979149,0.0001452,2]
[333193248,1721932251408,-1331.71,0.0001452,2]
[333193249,1721932251417,-500.0,0.0001452,2]
[333193250,1721932251427,-500.0,0.0001452,2]
[333193251,1721932251438,-570.44,0.0001452,2]
[333193252,1721932251448,-715.998133,0.0001452,2]
[333193253,1721932251459,-841.82,0.0001452,2]
[333193254,1721932251470,-500.0,0.0001452,2]
[333193255,1721932251480,-715.998133,0.0001452,2]
[333193256,1721932251490,-646.51,0.0001452,2]
[333193257,1721932251500,-935.22,0.0001452,2]
[333193258,1721932251510,-610.0,0.0001452,2]
[333193259,1721932251520,-259.764812,0.0001452,2]
[333193260,1721932251530,-1213.76,0.0001452,2]
[333193261,1721932251540,-581.19,0.0001452,2]
[333193262,1721932251550,-1150.51,0.0001452,2]
[333193263,1721932251559,-500.0,0.0001452,2]
[333193264,1721932251569,-500.0,0.0001452,2]
[333193265,1721932251579,-500.0,0.0001452,2]
[333193266,1721932251589,-500.0,0.0001452,2]
[333193267,1721932251599,-500.0,0.0001452,2]
[333193268,1721932251609,-772.62,0.0001452,2]
[333193269,1721932251618,-500.0,0.0001452,2]
[333193270,1721932251628,-1147.1,0.0001452,2]
[333193271,1721932251638,-1301.14,0.0001452,2]
[333193272,1721932251647,-500.0,0.0001452,2]
[333193273,1721932251657,-500.0,0.0001452,2]
[333193274,1721932251667,-500.0,0.0001452,2]
[333193275,1721932251678,-500.0,0.0001452,2]
[333193276,1721932251688,-736.76,0.0001452,2]
[333193277,1721932251698,-500.0,0.0001452,2]
[333193278,1721932251708,-660.58,0.0001452,2]
[333193279,1721932251717,-555.73,0.0001452,2]
[333193280,1721932251727,-500.0,0.0001452,2]
[333193281,1721932251736,-500.0,0.0001452,2]
[333193282,1721932251746,-500.0,0.0001452,2]
[333193283,1721932251755,-1061.04,0.0001452,2]
[333193284,1721932251764,-1089.93,0.0001452,2]
[333193285,1721932251774,-500.0,0.0001452,2]
[333193286,1721932251784,-725.61,0.0001452,2]
[333193287,1721932251794,-500.0,0.0001452,2]
[333193288,1721932251803,-151.0,0.0001452,2]
[333193289,1721932251814,-1239.827232,0.0001452,2]
[333193290,1721932251824,-1239.827232,0.0001452,2]
[333193291,1721932251834,-151.0,0.0001452,2]
[333193292,1721932251844,-500.0,0.0001452,2]
[333193293,1721932251854,-500.0,0.0001452,2]
[333193294,1721932251864,-500.0,0.0001452,2]
[333193295,1721932251874,-500.0,0.0001452,2]
[333193296,1721932251884,-984.29,0.0001452,2]
[333193297,1721932251893,-500.0,0.0001452,2]
[333193298,1721932251902,-500.0,0.0001452,2]
[333193299,1721932251912,-810.81,0.0001452,2]
[333193300,1721932251921,-1061.88,0.0001452,2]
[333193301,1721932251931,-500.0,0.0001452,2]
[333193302,1721932251941,-748.53,0.0001452,2]
[333193303,1721932251950,-583.9,0.0001452,2]
[333193304,1721932251960,-500.0,0.0001452,2]
[333193305,1721932251970,-1025.05,0.0001452,2]
[333193306,1721932251979,-500.0,0.0001452,2]
[333193307,1721932251989,-151.0,0.0001452,2]
[333193308,1721932251999,-500.0,0.0001452,2]
[333193309,1721932252008,-500.0,0.0001452,2]
[333193310,1721932252019,-500.0,0.0001452,2]
[333193311,1721932252029,-500.0,0.0001452,2]
[333193312,1721932252040,-500.0,0.0001452,2]
[333193313,1721932252050,-873.61,0.0001452,2]
[333193314,1721932252061,-500.0,0.0001452,2]
[333193315,1721932252071,-500.0,0.0001452,2]
[333193316,1721932252081,-568.25,0.0001452,2]
[333193317,1721932252091,-500.0,0.0001452,2]
[333193318,1721932252100,-500.0,0.0001452,2]
[333193319,1721932252110,-577.62,0.0001452,2]
[333193320,1721932252119,-500.0,0.0001452,2]
[333193321,1721932252128,-1016.64,0.0001452,2]
[333193322,1721932252138,-762.91,0.0001452,2]
[333193323,1721932252147,-500.0,0.0001452,2]
[333193324,1721932252157,-500.0,0.0001452,2]
[333193325,1721932252166,-500.0,0.0001452,2]
[333193326,1721932252176,-583.71,0.0001452,2]
[333193327,1721932252186,-500.0,0.0001452,2]
[333193328,1721932252196,-943.23,0.0001452,2]
[333193329,1721932252210,-1189.41,0.0001452,2]
[333193330,1721932252220,-500.0,0.0001452,2]
[333193331,1721932252230,-500.0,0.0001452,2]
[333193332,1721932252240,-500.0,0.0001452,2]
[333193333,1721932252250,-2677.53,0.0001452,2]
[333193334,1721932252260,-500.0,0.0001452,2]
[333193335,1721932252270,-500.0,0.0001452,2]
[333193336,1721932252281,-500.0,0.0001452,2]
[333193337,1721932252292,-1535.05,0.0001452,2]
[333193338,1721932252302,-151.0,0.0001452,2]
[333193339,1721932252312,-558.01,0.0001452,2]
[333193340,1721932252322,-500.0,0.0001452,2]
[333193341,1721932252331,-500.0,0.0001452,2]
[333193342,1721932252342,-500.0,0.0001452,2]
[333193343,1721932252352,-500.0,0.0001452,2]
[333193344,1721932252361,-803.44,0.0001452,2]
[333193345,1721932252371,-500.0,0.0001452,2]
[333193346,1721932252381,-763.15,0.0001452,2]
[333193347,1721932252391,-500.0,0.0001452,2]
[333193348,1721932252401,-2047.62,0.0001452,2]
[333193349,1721932252411,-500.0,0.0001452,2]
[333193350,1721932252420,-930.7,0.0001452,2]
[333193351,1721932252430,-500.0,0.0001452,2]
[333193352,1721932252440,-500.0,0.0001452,2]
[333193353,1721932252450,-500.0,0.0001452,2]
[333193354,1721932252461,-500.0,0.0001452,2]
[333193355,1721932252470,-151.0,0.0001452,2]
[333193356,1721932252480,-500.0,0.0001452,2]
[333193357,1721932252490,-1645.24,0.0001452,2]
[333193358,1721932252500,-1866.43,0.0001452,2]
[333193359,1721932252511,-1767.75,0.0001452,2]
[333193360,1721932252522,-500.0,0.0001452,2]
[333193361,1721932252533,-500.0,0.0001452,2]
[333193362,1721932252545,-1410.46,0.0001452,2]
[333193363,1721932252555,-927.64,0.0001452,2]
[333193364,1721932252565,-500.0,0.0001452,2]
[333193365,1721932252575,-500.0,0.0001452,2]
[333193366,1721932252587,-2490.27,0.0001452,2]
[333193367,1721932252599,-464.35473855,0.0001452,2]
[333193368,1721932252608,-2655.16,0.0001452,2]
[333193369,1721932252618,-500.0,0.0001452,2]
[333193370,1721932252627,-647.76,0.0001452,2]
[333193371,1721932252637,-151.0,0.0001452,2]
[333193372,1721932252647,-500.0,0.0001452,2]
[333193373,1721932252657,-500.0,0.0001452,2]
[333193374,1721932252667,-9389.14,0.0001452,2]
[333193375,1721932252677,-500.0,0.0001452,2]
[333193376,1721932252686,-500.0,0.0001452,2]
[333193377,1721932252697,-500.0,0.0001452,2]
[333193378,1721932252707,-922.75,0.0001452,2]
[333193379,1721932252717,-3968.3,0.0001452,2]
[333193380,1721932252726,-179.345121,0.0001452,2]
[333193381,1721932252737,-179.345121,0.0001452,2]
[333193382,1721932252746,-1516.91,0.0001452,2]
[333193383,1721932252758,-500.0,0.0001452,2]
[333193384,1721932252770,-1773.9,0.0001452,2]
[333193385,1721932252782,-500.0,0.0001452,2]
[333193386,1721932252792,-500.0,0.0001452,2]
[333193387,1721932252803,-500.0,0.0001452,2]
[333193388,1721932252813,-500.0,0.0001452,2]
[333193389,1721932252823,-1577.63,0.0001452,2]
[333193390,1721932252833,-542.46,0.0001452,2]
[333193391,1721932252845,-500.0,0.0001452,2]
[333193392,1721932252857,-730.35,0.0001452,2]
[333193393,1721932252867,-500.0,0.0001452,2]
[333193394,1721932252877,-799.53,0.0001452,2]
[333193395,1721932252887,-500.0,0.0001452,2]
[333193396,1721932252897,-1282.3,0.0001452,2]
[333193397,1721932252908,-6342.4,0.0001452,2]
[333193398,1721932252918,-500.0,0.0001452,2]
[333193399,1721932252928,-952.77,0.0001452,2]
[333193400,1721932252938,-500.0,0.0001452,2]
[333193401,1721932252948,-500.0,0.0001452,2]
[333193402,1721932252958,-500.0,0.0001452,2]
[333193403,1721932252968,-500.0,0.0001452,2]
[333193404,1721932252977,-500.0,0.0001452,2]
[333193405,1721932252986,-1021.45,0.0001452,2]
[333193406,1721932252997,-500.0,0.0001452,2]
[333193407,1721932253006,-522.52844013,0.0001452,2]
[333193408,1721932253016,-615.14,0.0001452,2]
[333193409,1721932253027,-500.0,0.0001452,2]
[333193410,1721932253038,-1550.44,0.0001452,2]
[333193411,1721932253048,-597.37,0.0001452,2]
[333193412,1721932253058,-274.12816104,0.0001452,2]
[333193413,1721932253069,-820.45,0.0001452,2]
[333193414,1721932253079,-500.0,0.0001452,2]
[333193415,1721932253088,-4616.0,0.0001452,2]
[333193416,1721932253098,-500.0,0.0001452,2]
[333193417,1721932253109,-7952.53,0.0001452,2]
[333193418,1721932253120,-841.85,0.0001452,2]
[333193419,1721932253129,-500.0,0.0001452,2]
[333193420,1721932253141,-500.0,0.0001452,2]
[333193421,1721932253152,-655.68,0.0001452,2]
[333193422,1721932253163,-500.0,0.0001452,2]
[333193423,1721932253173,-1449.04,0.0001452,2]
[333193424,1721932253184,-1233.01,0.0001452,2]
[333193425,1721932253198,-1303.4,0.0001452,2]
[333193426,1721932253212,-596.74426326,0.0001452,2]
[333193427,1721932253223,-500.0,0.0001452,2]
[333193428,1721932253233,-909.28,0.0001452,2]
[333193429,1721932253245,-558.36,0.0001452,2]
[333193430,1721932253255,-500.0,0.0001452,2]
[333193431,1721932253266,-1241.27,0.0001452,2]
[333193432,1721932253279,-500.0,0.0001452,2]
[333193433,1721932253290,-745.63,0.0001452,2]
[333193434,1721932253301,-2948.89,0.0001452,2]